bitfinex-derivatives/quotes_SOLF0:USTF0_20230105
["timestamp","ask_amount","ask_price","bid_price","bid_amount"]
[1672876802142,10.0,13.411,13.407,44.80178554]
[1672876802449,10.0,13.411,13.407,44.736]
[1672876802660,10.0,13.411,13.407,37.306]
[1672876806449,10.0,13.411,13.405,37.31]
[1672876806657,50.0,13.407,13.404,0.06995445]
[1672876806870,50.0,13.407,13.388,149.432]
[1672876807182,121.928,13.406,13.393,37.344]
[1672876807387,121.928,13.406,13.389,10.0]
[1672876807602,55.95,13.405,13.386,74.728]
[1672876807808,10.0,13.385,13.379,10.0]
[1672876808229,1881.369,13.385,13.377,0.06170298]
[1672876808755,42.2499,13.384,13.377,0.00170298]
[1672876808968,112.129,13.382,13.377,0.00170298]
[1672876809384,10.0,13.381,13.377,0.00170298]
[1672876809702,10.0,13.379,13.365,10.0]
[1672876809913,0.06492169,13.377,13.364,37.426]
[1672876810123,10.06492169,13.377,13.363,50.0]
[1672876810336,10.0,13.375,13.363,50.0]
[1672876810539,1871.467663,13.374,13.363,50.0]
[1672876810747,10.0,13.373,13.358,74.883]
[1672876810960,0.06136429,13.37,13.363,50.0]
[1672876811175,1834.0,13.369,13.363,50.0]
[1672876811386,10.0,13.368,13.363,50.0]
[1672876812329,1834.0,13.369,13.363,50.0]
[1672876812544,10.0,13.368,13.363,50.0]
[1672876812749,10.0,13.368,13.363,49.9263788]
[1672876813798,10.0,13.368,13.358,10.0]
[1672876814010,1834.0,13.367,13.353,49.9263788]
[1672876814221,0.06576758,13.365,13.353,49.9263788]
[1672876814431,1834.0,13.364,13.353,49.9263788]
[1672876814636,10.0,13.363,13.353,49.9263788]
[1672876814958,10.0,13.361,13.353,49.9263788]
[1672876815168,1834.0,13.36,13.351,74.926]
[1672876815379,10.0,13.359,13.343,50.0263788]
[1672876815591,0.07102276,13.356,13.343,50.0263788]
[1672876815901,56.16,13.355,13.327,37.529]
[1672876816110,0.06848925,13.346,13.333,49.9263788]
[1672876816426,0.00900119,13.344,13.343,49.9263788]
[1672876816641,1834.0,13.349,13.343,49.9263788]
[1672876816846,1834.0,13.349,13.344,10.0]
[1672876817058,874.0,13.357,13.344,10.0]
[1672876817267,874.0,13.357,13.352,49.9263788]
[1672876817473,874.0,13.357,13.353,10.0]
[1672876818007,10.0,13.356,13.352,49.9263788]
[1672876818217,1833.93951714,13.349,13.342,49.9263788]
[1672876818427,1844.0,13.348,13.342,49.9263788]
[1672876818641,10.0,13.347,13.342,49.9263788]
[1672876820001,1834.0,13.348,13.342,49.9263788]
[1672876820213,1834.0,13.348,13.335,10.0]
[1672876820418,0.06166665,13.346,13.342,49.9263788]
[1672876820633,10.0,13.347,13.335,10.0]
[1672876820634,10.0,13.347,13.343,10.0]
[1672876820841,1834.0,13.348,13.343,10.0]
[1672876821053,10.0,13.347,13.342,49.9263788]
[1672876821477,10.0,13.348,13.342,49.9263788]
[1672876821789,1834.0,13.347,13.342,49.9263788]
[1672876822000,1834.0,13.349,13.343,10.0]
[1672876822205,1834.0,13.349,13.339,10.0]
[1672876822422,37.48,13.345,13.333,10.0]
[1672876822620,10.06746336,13.344,13.333,10.0]
[1672876822831,10.0,13.343,13.333,10.0]
[1672876823040,1834.0,13.342,13.332,49.9263788]
[1672876823254,10.0,13.342,13.332,49.9263788]
[1672876823466,10.0,13.342,13.333,10.0]
[1672876824415,1834.0,13.343,13.333,10.0]
[1672876824617,1834.0,13.343,13.342,49.9263788]
[1672876825046,0.06332971,13.347,13.342,49.9263788]
[1672876825463,0.06332971,13.347,13.343,10.0]
[1672876825677,1834.0,13.349,13.343,10.0]
[1672876825678,1834.0,13.349,13.344,37.482]
[1672876825991,0.06153166,13.35,13.348,49.9263788]
[1672876826202,874.0,13.354,13.349,49.9263788]
[1672876826516,1834.0,13.361,13.351,49.9263788]
[1672876827050,0.06764739,13.361,13.352,10.0]
[1672876827255,1834.0,13.36,13.352,10.0]
[1672876827465,10.0,13.359,13.352,10.0]
[1672876828098,10.0,13.359,13.351,49.99374864]
[1672876828414,1834.0,13.36,13.352,10.0]
[1672876829360,1834.0,13.36,13.352,47.459]
[1672876831459,0.06764739,13.361,13.352,47.459]
[1672876831670,0.06764739,13.361,13.36,10.0]
[1672876831873,1844.0,13.362,13.356,0.06262693]
[1672876832086,1834.0,13.362,13.354,0.06271011]
[1672876832296,10.0,13.361,13.354,37.51671011]
[1672876832825,10.0,13.361,13.354,0.06271011]
[1672876833554,1834.0,13.362,13.354,37.51571011]
[1672876834299,1834.0,13.362,13.355,10.0]
[1672876834506,1834.0,13.362,13.36,49.9263788]
[1672876836617,1834.0,13.362,13.358,37.442]
[1672876836824,10.0,13.364,13.357,37.445]
[1672876837350,10.06718151,13.365,13.36,49.9263788]
[1672876837562,0.06718151,13.365,13.36,49.9263788]
[1672876838186,1871.49118151,13.365,13.356,0.06896546]
[1672876838396,10.0,13.364,13.356,0.06896546]
[1672876838819,47.428,13.364,13.356,0.06896546]
[1672876839446,47.34980561,13.364,13.356,0.06896546]
[1672876840916,47.34980561,13.364,13.349,37.468]
[1672876840917,10.0,13.363,13.34,124.9133788]
[1672876841129,37.462,13.352,13.34,49.9263788]
[1672876841334,37.462,13.352,13.322,70.925]
[1672876841335,37.462,13.352,13.33,49.9263788]
[1672876841553,1844.0,13.351,13.333,75.027]
[1672876841763,37.478,13.346,13.334,10.0]
[1672876841976,0.06420344,13.345,13.34,49.9263788]
[1672876842285,0.06719406,13.347,13.341,10.0]
[1672876842497,10.0,13.356,13.346,49.9263788]
[1672876842498,0.06877252,13.349,13.346,49.9263788]
[1672876842703,0.06873812,13.352,13.349,10.0]
[1672876842910,10.0,13.352,13.343,74.967]
[1672876843119,10.06687775,13.352,13.341,10.0]
[1672876843338,112.399,13.35,13.34,49.9263788]
[1672876843548,10.0,13.349,13.34,49.9263788]
[1672876843865,10.06314989,13.349,13.34,49.9263788]
[1672876844178,37.476,13.347,13.341,10.0]
[1672876844805,37.476,13.347,13.34,49.9263788]
[1672876845224,112.425,13.347,13.341,10.0]
[1672876845436,37.53414989,13.349,13.341,10.0]
[1672876846381,37.53414989,13.349,13.342,10.0]
[1672876847957,37.53414989,13.349,13.34,10.0]
[1672876848166,37.53414989,13.349,13.341,37.49]
[1672876848378,0.06314989,13.349,13.342,10.0]
[1672876848800,0.06314989,13.349,13.344,37.482]
[1672876849114,0.06314989,13.349,13.345,10.0]
[1672876849329,84.99555535,13.352,13.342,10.0]
[1672876849529,10.06955535,13.352,13.34,10.0]
[1672876849744,10.0,13.351,13.34,10.0]
[1672876849949,37.469,13.349,13.342,37.488]
[1672876850166,37.469,13.349,13.343,10.0]
[1672876850903,0.06955535,13.352,13.343,47.484]
[1672876852165,37.53055535,13.352,13.343,47.484]
[1672876852376,0.06955535,13.352,13.343,47.484]
[1672876852793,0.06955535,13.352,13.349,49.9263788]
[1672876853108,42.7909,13.36,13.349,49.9263788]
[1672876853109,0.06590994,13.355,13.35,122.398]
[1672876853324,0.06645157,13.357,13.35,122.398]
[1672876853523,0.06361503,13.358,13.357,0.14594959]
[1672876853734,10.0,13.359,13.357,0.14594959]
[1672876854056,10.0,13.356,13.345,10.0]
[1672876854268,0.07051235,13.355,13.345,10.0]
[1672876854899,37.457,13.354,13.347,37.472]
[1672876855213,10.0,13.353,13.348,10.0]
[1672876855425,37.52251235,13.355,13.349,37.467]
[1672876855638,37.52251235,13.355,13.35,10.0]
[1672876856265,37.52251235,13.355,13.348,10.0]
[1672876856678,37.52251235,13.355,13.351,37.463]
[1672876856894,37.452,13.355,13.351,37.463]
[1672876857211,37.452,13.355,13.347,10.0]
[1672876857417,37.452,13.355,13.345,84.956]
[1672876857738,10.0,13.354,13.349,37.468]
[1672876857943,47.455,13.354,13.35,10.0]
[1672876858156,37.455,13.354,13.35,10.0]
[1672876858680,37.52331124,13.355,13.35,37.464]
[1672876860467,0.07031124,13.355,13.35,37.464]
[1672876860994,0.07031124,13.355,13.351,10.0]
[1672876861200,37.448,13.357,13.352,37.46]
[1672876861510,10.0,13.359,13.352,187.302]
[1672876861935,10.0,13.364,13.354,224.715]
[1672876862145,10.0,13.364,13.355,10.0]
[1672876862560,0.06396203,13.362,13.356,112.342]
[1672876862770,10.0,13.359,13.356,112.342]
[1672876862981,0.06396203,13.362,13.356,112.342]
[1672876863191,0.00086203,13.362,13.357,10.0]
[1672876863400,0.00086203,13.362,13.358,224.653]
[1672876863617,10.0,13.373,13.358,224.653]
[1672876863826,10.0,13.373,13.359,10.0]
[1672876864031,10.0,13.373,13.364,10.0]
[1672876864247,10.06992569,13.373,13.364,10.06502441]
[1672876864459,10.06992569,13.373,13.366,112.257]
[1672876864669,0.06992569,13.373,13.366,112.257]
[1672876864881,1362.87397559,13.361,13.359,10.0]
[1672876865087,874.0,13.371,13.359,10.0]
[1672876865302,1844.0,13.37,13.359,10.0]
[1672876865508,10.0,13.369,13.359,37.441]
[1672876865719,1834.0,13.368,13.36,10.0]
[1672876866036,10.0,13.367,13.362,112.294]
[1672876868553,1834.0,13.368,13.362,112.294]
[1672876868764,10.0,13.367,13.362,112.294]
[1672876870966,10.0,13.367,13.362,0.004]
[1672876871182,10.0,13.367,13.355,112.354]
[1672876871387,10.0,13.367,13.351,187.309]
[1672876871710,10.0,13.354,13.341,10.0]
[1672876871919,10.0,13.339,13.334,10.0]
[1672876872130,864.0,13.34,13.335,150.032]
[1672876872657,864.0,13.34,13.336,10.0]
[1672876872870,864.0,13.34,13.337,37.502]
[1672876873078,0.06259617,13.342,13.338,10.0]
[1672876873281,0.06676396,13.345,13.339,112.489]
[1672876873601,0.06121483,13.347,13.34,10.0]
[1672876873813,0.06121483,13.347,13.338,10.0]
[1672876874023,10.0,13.346,13.342,37.488]
[1672876874236,10.0,13.346,13.342,112.465]
[1672876874442,10.0,13.346,13.342,37.488]
[1672876875073,10.0,13.346,13.339,74.991]
[1672876875806,10.0,13.346,13.341,37.491]
[1672876876545,10.0,13.346,13.339,74.991]
[1672876876756,10.0,13.346,13.339,48.401316]
[1672876877280,10.0,13.346,13.341,37.491]
[1672876877693,1834.0,13.338,13.333,75.025]
[1672876877910,10.0,13.337,13.333,75.025]
[1672876878334,1844.0,13.337,13.333,75.025]
[1672876878540,1844.0,13.337,13.334,37.51]
[1672876878856,1844.0,13.337,13.33,10.0]
[1672876879065,1844.0,13.337,13.332,37.514]
[1672876879278,1844.0,13.337,13.329,75.046]
[1672876879798,1881.503,13.337,13.321,75.094]
[1672876880017,0.06883251,13.334,13.322,10.0]
[1672876880328,0.06883251,13.334,13.325,37.534]
[1672876880538,0.06883251,13.334,13.326,10.0]
[1672876880745,0.06883251,13.334,13.324,75.074]
[1672876881063,10.06883251,13.334,13.325,10.0]
[1672876881274,10.06883251,13.334,13.324,75.074]
[1672876881588,0.06883251,13.334,13.325,10.0]
[1672876882323,0.06883251,13.334,13.327,112.589]
[1672876882535,0.00883251,13.334,13.328,10.0]
[1672876882956,0.00883251,13.334,13.329,37.523]
[1672876883375,0.00883251,13.334,13.33,10.0]
[1672876883584,0.00883251,13.334,13.331,37.519]
[1672876883899,1834.06141628,13.337,13.332,10.0]
[1672876884110,1834.06141628,13.337,13.33,85.102]
[1672876884311,1834.06141628,13.337,13.333,37.512]
[1672876884527,1834.0,13.337,13.334,10.0]
[1672876884737,1834.0,13.339,13.335,75.014]
[1672876884948,1834.0,13.339,13.335,112.521]
[1672876885160,874.06393464,13.34,13.336,10.0]
[1672876885365,0.06964839,13.343,13.338,112.498]
[1672876885579,584.0,13.344,13.339,10.0]
[1672876885789,1834.0,13.343,13.337,0.06]
[1672876886107,1834.0,13.343,13.335,37.566]
[1672876886316,10.0,13.342,13.335,37.506]
[1672876886634,1834.0,13.341,13.335,37.506]
[1672876886844,10.0,13.34,13.335,37.506]
[1672876887156,1834.0,13.339,13.335,37.506]
[1672876887365,10.0,13.338,13.335,37.506]
[1672876887781,10.0,13.338,13.334,0.06]
[1672876887988,50.0,13.335,13.331,0.06]
[1672876888199,1884.0,13.335,13.328,0.06]
[1672876888408,1884.0,13.335,13.324,37.537]
[1672876888623,10.0,13.334,13.327,0.06]
[1672876888829,1844.0,13.334,13.326,0.06]
[1672876889044,1844.0,13.334,13.325,0.06]
[1672876889465,1834.0,13.334,13.328,10.0]
[1672876890097,1834.0,13.334,13.329,37.523]
[1672876890303,1834.0,13.334,13.33,10.0]
[1672876890514,1834.0,13.334,13.331,37.519]
[1672876891985,10.0,13.333,13.328,0.06]
[1672876892719,47.514,13.333,13.328,0.06]
[1672876892935,10.0,13.333,13.328,0.06]
[1672876893985,47.514,13.333,13.328,0.06]
[1672876894301,47.514,13.333,13.32,75.098]
[1672876894720,47.514,13.333,13.321,10.0]
[1672876895036,1834.0,13.334,13.322,37.544]
[1672876895245,10.06164926,13.333,13.323,10.0]
[1672876895454,10.06164926,13.333,13.325,37.534]
[1672876895666,10.06164926,13.333,13.326,10.0]
[1672876896297,0.06164926,13.333,13.326,10.0]
[1672876897031,0.06164926,13.333,13.324,10.0]
[1672876897660,0.06164926,13.333,13.324,47.538]
[1672876899337,0.06164926,13.333,13.324,10.0]
[1672876899973,0.06164926,13.333,13.324,47.538]
[1672876901129,0.06164926,13.333,13.324,37.538]
[1672876901336,37.57564926,13.333,13.32,37.55]
[1672876901546,37.57564926,13.333,13.317,75.115]
[1672876901547,93.82564926,13.333,13.321,10.0]
[1672876901761,53.80806016,13.332,13.321,10.0]
[1672876902075,47.522,13.331,13.321,10.0]
[1672876902285,10.0,13.331,13.321,10.0]
[1672876902916,53.80806016,13.332,13.321,10.0]
[1672876902917,53.80806016,13.332,13.321,47.547]
[1672876904183,10.0,13.331,13.321,47.547]
[1672876904394,47.519,13.331,13.32,37.55]
[1672876904706,47.519,13.331,13.321,10.0]
[1672876904905,47.58157798,13.331,13.321,10.0]
[1672876905120,10.06257798,13.331,13.321,10.0]
[1672876905326,10.06257798,13.331,13.32,10.0]
[1672876905860,47.58457798,13.331,13.32,10.0]
[1672876906596,47.58457798,13.331,13.318,37.555]
[1672876906806,47.58457798,13.331,13.319,10.0]
[1672876907331,0.06257798,13.331,13.319,47.553]
[1672876907648,10.06257798,13.331,13.319,47.553]
[1672876908171,0.06257798,13.331,13.319,47.553]
[1672876908593,43.7442,13.332,13.331,0.1370724]
[1672876909007,10.0,13.331,13.322,10.0]
[1672876909642,10.06560427,13.331,13.322,10.06043657]
[1672876910272,0.06560427,13.331,13.322,10.06043657]
[1672876911429,43.7442,13.332,13.322,10.06043657]
[1672876911430,584.0,13.335,13.322,10.06043657]
[1672876911639,10.0,13.334,13.322,47.60443657]
[1672876912369,0.06909305,13.333,13.322,47.60443657]
[1672876912686,0.06909305,13.333,13.322,37.60443657]
[1672876913944,0.06909305,13.333,13.323,10.0]
[1672876914790,0.06909305,13.333,13.323,47.541]
[1672876916891,0.06909305,13.333,13.323,10.0]
[1672876917312,0.06909305,13.333,13.323,47.541]
[1672876918363,41.7705,13.337,13.323,47.541]
[1672876918364,584.0,13.337,13.323,47.541]
[1672876918575,10.0,13.336,13.323,47.541]
[1672876919101,584.0,13.337,13.323,47.541]
[1672876919308,0.06694355,13.335,13.325,0.06379585]
[1672876919519,0.06694355,13.335,13.328,112.584]
[1672876919827,0.06694355,13.335,13.329,10.0]
[1672876920886,0.06694355,13.335,13.33,37.52]
[1672876921099,0.06694355,13.335,13.331,10.0]
[1672876921308,52.17,13.355,13.334,51.8]
[1672876921524,50.0,13.345,13.34,52.17]
[1672876921828,50.0,13.341,13.326,52.03]
[1672876922040,10.0,13.353,13.314,52.5]
[1672876922041,50.0,13.335,13.32,10.0]
[1672876922245,0.06493543,13.332,13.323,0.06350635]
[1672876922461,1834.06493543,13.332,13.326,52.17]
[1672876922666,10.0,13.331,13.327,10.0]
[1672876923092,10.0,13.331,13.326,52.17]
[1672876924874,10.0,13.331,13.319,85.103]
[1672876924875,50.0,13.327,13.319,52.17]
[1672876925195,50.0,13.325,13.319,52.17]
[1672876925404,10.0,13.324,13.319,52.17]
[1672876925611,42.4166,13.33,13.32,10.0]
[1672876925820,1834.0,13.331,13.328,51.78]
[1672876926030,0.07019654,13.334,13.328,51.78]
[1672876926242,10.0,13.332,13.328,51.78]
[1672876926667,10.0,13.33,13.328,51.78]
[1672876926877,10.0,13.33,13.326,0.06618591]
[1672876927194,1833.93381409,13.326,13.322,52.17]
[1672876927509,60.0,13.325,13.322,52.17]
[1672876927824,10.0,13.324,13.322,52.17]
[1672876928032,1844.0,13.324,13.322,52.17]
[1672876928655,1844.0,13.324,13.319,51.8]
[1672876929714,1834.0,13.324,13.32,10.0]
[1672876930036,10.0,13.326,13.32,10.0]
[1672876930240,1834.0,13.325,13.32,10.0]
[1672876930450,10.0,13.324,13.319,51.8]
[1672876930767,1834.0,13.323,13.319,51.8]
[1672876930979,1834.0,13.324,13.319,51.8]
[1672876931501,1834.0,13.324,13.32,10.0]
[1672876931713,1834.0,13.324,13.322,51.72]
[1672876932027,1834.0,13.324,13.323,10.0]
[1672876932237,1834.0,13.324,13.322,51.72]
[1672876935384,1834.0,13.324,13.318,0.0608255]
[1672876935592,1875.3989,13.327,13.318,0.0608255]
[1672876935916,50.0,13.325,13.318,0.0608255]
[1672876936123,1844.0,13.324,13.318,0.0608255]
[1672876936335,10.0,13.323,13.318,0.0608255]
[1672876936545,1844.0,13.323,13.318,0.0608255]
[1672876936751,50.0,13.319,13.305,75.183]
[1672876936967,1844.0,13.323,13.308,52.11]
[1672876936968,50.0,13.315,13.308,52.11]
[1672876937176,50.0,13.315,13.305,51.87]
[1672876937388,924.0,13.315,13.302,52.17]
[1672876937697,10.0,13.314,13.302,52.17]
[1672876937909,0.06765387,13.313,13.304,0.06440002]
[1672876939060,50.0,13.305,13.304,0.06440002]
[1672876939383,0.06987918,13.309,13.3,0.06376664]
[1672876939591,0.06987918,13.309,13.305,51.74]
[1672876939805,0.06987918,13.309,13.305,89.332]
[1672876940225,0.06987918,13.309,13.306,10.0]
[1672876940539,0.07123652,13.312,13.306,10.0]
[1672876940952,0.07123652,13.312,13.31,10.0]
[1672876941160,874.0,13.315,13.311,52.17]
[1672876941381,874.0,13.315,13.314,51.8]
[1672876941591,0.06557971,13.319,13.314,89.367]
[1672876941903,0.06905659,13.321,13.315,10.0]
[1672876942218,10.0,13.322,13.314,51.8]
[1672876942444,1834.0,13.321,13.314,51.8]
[1672876942641,10.0,13.32,13.316,51.72]
[1672876942849,1834.0,13.32,13.317,10.0]
[1672876943057,1834.0,13.322,13.317,10.0]
[1672876944216,1834.0,13.322,13.317,47.558]
[1672876945486,1834.0,13.322,13.319,52.15]
[1672876945792,1834.0,13.322,13.32,10.0]
[1672876946209,1834.0,13.322,13.319,52.15]
[1672876946628,1834.0,13.322,13.32,10.0]
[1672876947052,1745.71,13.322,13.32,10.0]
[1672876947270,1732.4238785,13.328,13.321,52.17]
[1672876947584,584.0,13.333,13.328,52.17]
[1672876947792,10.0,13.332,13.328,52.17]
[1672876948003,10.0,13.332,13.326,52.11]
[1672876948214,10.0,13.332,13.324,51.93827133]
[1672876948428,10.0,13.332,13.326,37.532]
[1672876948630,584.06154504,13.333,13.326,37.532]
[1672876948944,584.06154504,13.333,13.327,10.0]
[1672876949684,584.06154504,13.333,13.326,37.532]
[1672876949896,584.06154504,13.333,13.331,52.15]
[1672876950096,874.0,13.336,13.332,47.516]
[1672876950311,0.06090998,13.337,13.335,52.17]
[1672876950624,1834.0,13.342,13.336,47.505]
[1672876950832,10.0,13.341,13.335,52.17]
[1672876955040,0.06978553,13.343,13.335,52.17]
[1672876955354,0.06978553,13.343,13.336,10.0]
[1672876955775,0.06978553,13.343,13.336,47.505]
[1672876956203,0.06978553,13.343,13.338,10.0]
[1672876956409,10.0,13.338,13.328,51.8]
[1672876956620,10.0,13.335,13.328,51.8]
[1672876956832,10.0,13.335,13.329,10.0]
[1672876957671,10.0,13.335,13.328,51.8]
[1672876957878,10.0,13.335,13.328,89.327]
[1672876958088,10.0,13.335,13.328,51.8]
[1672876958302,50.0,13.336,13.328,51.8]
[1672876958513,50.0,13.336,13.329,10.0]
[1672876959564,10.0,13.335,13.328,51.8]
[1672876960089,10.0,13.335,13.327,0.0642217]
[1672876961247,10.0,13.335,13.327,37.5932217]
[1672876961459,60.0,13.336,13.328,10.0]
[1672876961876,50.0,13.336,13.329,37.524]
[1672876962086,50.0,13.336,13.33,10.0]
[1672876962930,50.0,13.336,13.329,37.524]
[1672876963140,10.0,13.335,13.329,37.524]
[1672876963980,10.0,13.335,13.327,0.0642217]
[1672876964189,10.0,13.335,13.328,37.525]
[1672876964925,10.0,13.335,13.327,37.5942217]
[1672876966933,50.0,13.336,13.328,10.0]
[1672876967243,50.0,13.336,13.331,10.0]
[1672876967649,50.0,13.336,13.331,37.517]
[1672876968395,10.0,13.335,13.33,37.521]
[1672876968597,10.0,13.335,13.329,10.0]
[1672876968816,10.0,13.335,13.328,52.25]
[1672876969024,10.0,13.335,13.329,37.524]
[1672876969236,10.0,13.335,13.327,0.0642217]
[1672876969444,10.0,13.335,13.327,0.0042217]
[1672876969445,50.0,13.328,13.327,0.0042217]
[1672876969654,50.0,13.328,13.319,10.0]
[1672876969866,10.0,13.327,13.32,51.97]
[1672876970077,10.0,13.327,13.321,10.0]
[1672876970502,10.0,13.327,13.32,51.97]
[1672876970812,10.0,13.327,13.32,89.519]
[1672876971227,0.06788487,13.329,13.323,37.541]
[1672876971439,0.06788487,13.329,13.323,89.791]
[1672876971648,0.06788487,13.329,13.324,10.0]
[1672876971967,0.06788487,13.329,13.326,10.0]
[1672876972177,0.06431885,13.332,13.326,10.0]
[1672876972390,0.06431885,13.332,13.324,85.075]
[1672876972599,0.06431885,13.332,13.328,10.0]
[1672876973019,0.06431885,13.332,13.325,10.06634081]
[1672876973861,0.06431885,13.332,13.325,0.06634081]
[1672876974071,0.06431885,13.332,13.328,37.525]
[1672876977960,10.06431885,13.332,13.328,37.525]
[1672876981113,0.06431885,13.332,13.328,37.525]
[1672876981745,0.06431885,13.332,13.329,10.0]
[1672876982058,42.8845,13.334,13.33,37.522]
[1672876982259,10.06402275,13.335,13.33,37.522]
[1672876982470,0.06402275,13.335,13.33,37.522]
[1672876983848,1834.0,13.336,13.335,0.12476842]
[1672876986468,44.2036,13.339,13.335,0.12476842]
[1672876986682,0.06613756,13.34,13.335,10.12476842]
[1672876987419,0.06613756,13.34,13.335,47.63176842]
[1672876987945,0.00613756,13.34,13.339,112.491]
[1672876988156,41.0794,13.347,13.339,122.491]
[1672876988359,50.0,13.348,13.344,10.0]
[1672876990047,0.06597398,13.351,13.344,47.483]
[1672876990262,0.06597398,13.351,13.346,51.82]
[1672876990465,0.06597398,13.351,13.347,10.0]
[1672876990674,0.06150874,13.354,13.347,10.0]
[1672876990998,0.06980978,13.355,13.347,47.473]
[1672876991514,50.0,13.348,13.336,51.99]
[1672876991731,50.0,13.339,13.332,52.07]
[1672876991940,10.0,13.338,13.333,10.0]
[1672876992362,50.0,13.339,13.335,37.63076842]
[1672876992779,10.0,13.338,13.335,0.12476842]
[1672876993306,50.0,13.339,13.335,0.12476842]
[1672876993508,50.0,13.339,13.335,37.63176842]
[1672876995407,50.0,13.339,13.335,0.12476842]
[1672876995616,50.0,13.339,13.335,37.63276842]
[1672876996564,50.0,13.339,13.335,0.12476842]
[1672876996776,10.0,13.338,13.335,0.12476842]
[1672876997926,10.0,13.338,13.335,6.842e-05]
[1672876999711,50.0,13.339,13.335,6.842e-05]
[1672877000555,10.0,13.341,13.335,6.842e-05]
[1672877000975,50.0,13.339,13.335,6.842e-05]
[1672877001185,10.0,13.338,13.335,6.842e-05]
[1672877001819,0.07103969,13.342,13.337,51.91]
[1672877002026,10.0,13.348,13.34,52.25]
[1672877002238,10.0,13.348,13.341,10.0]
[1672877003080,10.0,13.348,13.341,47.489]
[1672877003814,10.0,13.348,13.341,37.489]
[1672877005075,50.0609997,13.349,13.341,37.489]
[1672877005920,50.0609997,13.349,13.342,10.0]
[1672877006130,50.0609997,13.349,13.344,37.482]
[1672877006336,0.0609997,13.349,13.347,52.19]
[1672877006548,0.06251558,13.353,13.348,61.97]
[1672877006752,0.06329646,13.355,13.352,52.12]
[1672877006967,1844.06665013,13.358,13.352,52.12]
[1672877007176,1844.06665013,13.358,13.353,10.0]
[1672877007389,1834.06665013,13.358,13.353,10.0]
[1672877007703,1834.06665013,13.358,13.353,47.457]
[1672877008546,1834.06665013,13.358,13.353,37.457]
[1672877009915,10.0,13.357,13.351,37.5279426]
[1672877010120,1844.0,13.357,13.351,37.5279426]
[1672877014221,1843.80889374,13.357,13.351,37.5279426]
[1672877016015,1834.0,13.357,13.351,37.5279426]
[1672877018323,1834.0,13.357,13.352,62.25]
[1672877018645,1834.0,13.357,13.355,51.91]
[1672877019056,1834.0,13.357,13.356,10.0]
[1672877019269,1834.0,13.36,13.356,10.0]
[1672877019904,0.06369925,13.361,13.357,51.89]
[1672877020116,10.0,13.366,13.36,52.25]
[1672877020324,10.0,13.366,13.362,37.431]
[1672877020533,50.0,13.363,13.358,0.06716002]
[1672877020847,50.0,13.36,13.358,0.06716002]
[1672877021056,10.0,13.362,13.359,37.44]
[1672877021373,83.57001519,13.358,13.357,52.19]
[1672877021583,83.57001519,13.358,13.357,164.248]
[1672877022216,0.00561519,13.358,13.357,164.248]